fUSD/lending_fUSD_20250215
["ID","MTS","AMOUNT","RATE_DAILY","PERIOD"]
[353125430,1739584244083,-151.0,0.00012329,2]
[353125431,1739584244093,-151.0,0.00012329,2]
[353125432,1739584244102,-151.0,0.00012329,2]
[353125433,1739584244111,-161.950959,0.00012329,2]
[353125434,1739584244120,-433.925602,0.00012329,2]
[353125435,1739584244130,-433.925602,0.00012329,2]
[353125436,1739584244139,-433.925602,0.00012329,2]
[353125437,1739584244152,-151.0,0.00012329,2]
[353125438,1739584244161,-151.0,0.00012329,2]
[353125439,1739584244170,-151.0,0.00012329,2]
[353125440,1739584244179,-433.925602,0.00012329,2]
[353125441,1739584244189,-433.925602,0.00012329,2]
[353125442,1739584244199,-433.925602,0.00012329,2]
[353125443,1739584244210,-151.0,0.00012329,2]
[353125444,1739584244218,-151.0,0.00012329,2]
[353125445,1739584244230,-151.0,0.00012329,2]
[353125446,1739584244240,-8251.779854,0.00012329,2]
[353125447,1739584244249,-8251.779854,0.00012329,2]
[353125448,1739584244258,-8251.779854,0.00012329,2]
[353125449,1739584244268,-151.0,0.00012329,2]
[353125450,1739584244277,-151.474052,0.00012329,2]
[353125451,1739584244286,-8251.779854,0.00012329,2]
[353125452,1739584244296,-8251.779854,0.00012329,2]
[353125454,1739584244305,-8251.779854,0.00012329,2]
[353125456,1739584244315,-151.0,0.00012329,2]
[353125458,1739584244324,-151.0,0.00012329,2]
[353125460,1739584244334,-151.0,0.00012329,2]
[353125461,1739584244343,-485.885822,0.00012329,2]
[353125462,1739584244354,-485.885822,0.00012329,2]
[353125463,1739584244364,-485.885822,0.00012329,2]
[353125464,1739584244374,-485.885822,0.00012329,2]
[353125465,1739584244384,-485.885822,0.00012329,2]
[353125466,1739584244394,-485.885822,0.00012329,2]
[353125467,1739584244403,-525.799541,0.00012329,2]
[353125468,1739584244487,-525.799541,0.00012329,2]
[353125469,1739584244497,-525.799541,0.00012329,2]
[353125470,1739584244506,-525.799541,0.00012329,2]
[353125471,1739584244515,-525.799541,0.00012329,2]
[353125472,1739584244524,-525.799541,0.00012329,2]
[353125473,1739584244534,-151.0,0.00012329,2]
[353125474,1739584244543,-151.0,0.00012329,2]
[353125475,1739584244552,-151.0,0.00012329,2]
[353125476,1739584244562,-151.0,0.00012329,2]
[353125477,1739584244571,-151.0,0.00012329,2]
[353125478,1739584244580,-151.0,0.00012329,2]
[353125479,1739584244589,-267.574803,0.00012329,2]
[353125480,1739584244598,-267.574803,0.00012329,2]
[353125481,1739584244608,-267.574803,0.00012329,2]
[353125482,1739584244617,-267.574803,0.00012329,2]
[353125483,1739584244626,-267.574803,0.00012329,2]
[353125484,1739584244635,-267.574803,0.00012329,2]
[353125485,1739584244644,-1173.588497,0.00012329,2]
[353125486,1739584244654,-1173.588497,0.00012329,2]
[353125487,1739584244663,-1173.588497,0.00012329,2]
[353125488,1739584244673,-1173.588497,0.00012329,2]
[353125489,1739584244682,-1173.588497,0.00012329,2]
[353125490,1739584244691,-1173.588497,0.00012329,2]
[353125491,1739584244701,-151.0,0.00012329,2]
[353125492,1739584244711,-151.0,0.00012329,2]
[353125493,1739584244720,-151.0,0.00012329,2]
[353125494,1739584244729,-177.744704,0.00012329,2]
[353125495,1739584244739,-151.0,0.00012329,2]
[353125496,1739584244749,-151.0,0.00012329,2]
[353125497,1739584244758,-151.0,0.00012329,2]
[353125498,1739584244767,-152.217123,0.00012329,2]
[353125499,1739584244777,-151.0,0.00012329,2]
[353125500,1739584244788,-151.906775,0.00012329,2]
[353125501,1739584244799,-151.0,0.00012329,2]
[353125502,1739584244808,-151.0,0.00012329,2]
[353125503,1739584244817,-151.0,0.00012329,2]
[353125504,1739584244826,-151.0,0.00012329,2]
[353125505,1739584244835,-151.0,0.00012329,2]
[353125506,1739584244845,-151.0,0.00012329,2]
[353125507,1739584244854,-151.0,0.00012329,2]
[353125508,1739584244864,-151.0,0.00012329,2]
[353125509,1739584244873,-151.0,0.00012329,2]
[353125510,1739584244883,-151.0,0.00012329,2]
[353125511,1739584244892,-257.29391,0.00012329,2]
[353125512,1739584244901,-257.29391,0.00012329,2]
[353125513,1739584244910,-151.0,0.00012329,2]
[353125514,1739584244919,-151.0,0.00012329,2]
[353125515,1739584244929,-151.0,0.00012329,2]
[353125516,1739584244938,-273.705543,0.00012329,2]
[353125517,1739584244947,-151.0,0.00012329,2]
[353125518,1739584244958,-151.0,0.00012329,2]
[353125519,1739584244967,-151.520121,0.00012329,2]
[353125520,1739584244976,-151.0,0.00012329,2]
[353125521,1739584244986,-151.0,0.00012329,2]
[353125522,1739584244995,-151.0,0.00012329,2]
[353125523,1739584245004,-151.0,0.00012329,2]
[353125524,1739584245014,-225.966316,0.00012329,2]
[353125525,1739584245023,-225.966316,0.00012329,2]
[353125526,1739584245032,-298.014245,0.00012329,2]
[353125527,1739584245041,-151.0,0.00012329,2]
[353125528,1739584245051,-151.0,0.00012329,2]
[353125529,1739584245059,-151.0,0.00012329,2]
[353125530,1739584245068,-151.0,0.00012329,2]
[353125531,1739584245077,-151.0,0.00012329,2]
[353125532,1739584245087,-151.0,0.00012329,2]
[353125533,1739584245096,-151.0,0.00012329,2]
[353125534,1739584245106,-433.925602,0.00012329,2]
[353125535,1739584245115,-151.0,0.00012329,2]
[353125536,1739584245125,-433.925602,0.00012329,2]
[353125537,1739584245134,-151.0,0.00012329,2]
[353125538,1739584245144,-151.0,0.00012329,2]
[353125539,1739584245156,-8251.779854,0.00012329,2]
[353125540,1739584245166,-8251.779854,0.00012329,2]
[353125541,1739584245175,-151.0,0.00012329,2]
[353125542,1739584245184,-485.885822,0.00012329,2]
[353125543,1739584245194,-485.885822,0.00012329,2]
[353125544,1739584245205,-525.799541,0.00012329,2]
[353125545,1739584245215,-525.799541,0.00012329,2]
[353125546,1739584245224,-151.0,0.00012329,2]
[353125547,1739584245235,-159.332523,0.00012329,2]
[353125548,1739584245245,-267.574803,0.00012329,2]
[353125549,1739584245254,-267.574803,0.00012329,2]
[353125550,1739584245263,-1173.588497,0.00012329,2]
[353125551,1739584245272,-1173.588497,0.00012329,2]
[353125552,1739584245282,-151.0,0.00012329,2]
[353125553,1739584245291,-205.889955,0.0001234,2]
[353125554,1739584245300,-205.889955,0.0001234,2]
[353125555,1739584245309,-151.0,0.0001234,2]
[353125556,1739584245319,-1000.0,0.00012374,2]
[353125557,1739584245329,-881.89653883,0.00012396,2]
[353125558,1739584245338,-4000.0,0.000124,2]
[353125559,1739584245348,-169.49,0.00012406,2]
[353125560,1739584245357,-151.0,0.00012406,2]
[353125561,1739584245366,-151.0,0.00012406,2]
[353125562,1739584245375,-6533.25738314,0.00012411,2]
[353125563,1739584245385,-6790.81835107,0.0001242,2]
[353125564,1739584245394,-590.01,0.00012465,2]
[353125565,1739584245404,-152.30816,0.00012487,2]
[353125566,1739584245414,-151.473691,0.00012487,2]
[353125567,1739584245423,-156.812709,0.00012487,2]
[353125568,1739584245433,-1059.0,0.0001249,2]
[353125569,1739584245442,-334.7,0.00012561,2]
[353125570,1739584245453,-299.0,0.0001259,2]
[353125571,1739584245462,-590.01,0.00012602,2]
[353125572,1739584245471,-194.64,0.00012627,2]
[353125573,1739584245480,-165.30650348,0.00012671,2]
[353125574,1739584245490,-625.04,0.00012735,2]
[353125575,1739584245499,-590.01,0.00012739,2]
[353125576,1739584245509,-151.0,0.00012749,2]
[353125577,1739584245518,-151.0,0.00012749,2]
[353125578,1739584245527,-151.0,0.00012749,2]
[353125579,1739584245538,-316.02549607,0.00012757,2]
[353125580,1739584245548,-150.0,0.0001276,2]
[353125581,1739584245557,-11387.16,0.00012828,2]
[353125582,1739584245567,-151.0,0.00012828,2]
[353125583,1739584245577,-163.288202,0.00012828,2]
[353125584,1739584245586,-163.288202,0.00012828,2]
[353125585,1739584245595,-6533.25738314,0.00012834,2]
[353125586,1739584245605,-6790.81835107,0.0001284,2]
[353125587,1739584245614,-590.01,0.00012876,2]
[353125588,1739584245624,-980.23,0.000129,2]
[353125589,1739584245633,-151.0,0.00012918,2]
[353125590,1739584245642,-151.0,0.00012918,2]
[353125591,1739584245652,-151.0,0.00012918,2]
[353125592,1739584245661,-151.0,0.00012918,2]
[353125593,1739584245670,-151.0,0.00012918,2]
[353125594,1739584245680,-213.624083,0.00012918,2]
[353125595,1739584245689,-550.0,0.00013,2]
[353125596,1739584245698,-590.01,0.00013013,2]
[353125597,1739584245709,-1059.0,0.00013114,2]
[353125598,1739584245718,-1125.82,0.00013148,2]
[353125599,1739584245727,-590.04118552,0.0001315,2]
[353125600,1739584245737,-1000.0,0.0001321,2]
[353125601,1739584245746,-151.0,0.0001322,2]
[353125602,1739584245755,-151.0,0.0001322,2]
[353125603,1739584245765,-881.89653883,0.00013227,2]
[353125604,1739584245774,-681.921432,0.00013232,2]
[353125605,1739584245783,-151.0,0.00013232,2]
[353125606,1739584245793,-193.506999,0.00013232,2]
[353125607,1739584245803,-151.0,0.00013232,2]
[353125608,1739584245812,-151.0,0.00013232,2]
[353125609,1739584245822,-525.799541,0.00013232,2]
[353125610,1739584245832,-525.799541,0.00013232,2]
[353125611,1739584245842,-6533.25738314,0.00013257,2]
[353125612,1739584245852,-6790.81835107,0.0001326,2]
[353125613,1739584245862,-151.0,0.00013297,2]
[353125614,1739584245872,-316.02549607,0.00013329,2]
[353125615,1739584245882,-831.082,0.00013357,2]
[353125616,1739584245892,-150.0,0.00013357,2]
[353125617,1739584245902,-3916.0,0.00013357,2]
[353125618,1739584245912,-151.0,0.00013357,2]
[353125619,1739584245922,-151.0,0.00013357,2]
[353125620,1739584245932,-257.29391,0.00013357,2]
[353125621,1739584245941,-257.29391,0.00013357,2]
[353125622,1739584245951,-151.0,0.00013357,2]
[353125623,1739584245961,-165.30650348,0.00013364,2]
[353125624,1739584245971,-151.0,0.00013382,2]
[353125625,1739584245981,-151.0,0.00013382,2]
[353125626,1739584245990,-151.0,0.00013382,2]
[353125627,1739584246000,-151.0,0.00013382,2]
[353125628,1739584246009,-151.0,0.00013382,2]
[353125629,1739584246019,-986.27,0.00013384,2]
[353125630,1739584246028,-150.0,0.00013384,2]
[353125631,1739584246038,-986.27,0.00013384,2]
[353125633,1739584246047,-986.27,0.00013384,2]
[353125634,1739584246057,-300.0,0.00013384,2]
[353125635,1739584246067,-438.97,0.00013384,2]
[353125636,1739584246077,-438.97,0.00013384,2]
[353125638,1739584246087,-438.97,0.00013384,2]
[353125639,1739584246096,-438.97,0.00013384,2]
[353125641,1739584246106,-438.97,0.00013384,2]
[353125643,1739584246116,-438.09,0.00013384,2]
[353125645,1739584246126,-205.286126,0.00013384,2]
[353125647,1739584246136,-151.0,0.00013384,2]
[353125649,1739584246149,-151.0,0.00013384,2]
[353125652,1739584246159,-151.0,0.00013384,2]
[353125653,1739584246169,-225.966316,0.00013384,2]
[353125655,1739584246178,-225.966316,0.00013384,2]
[353125657,1739584246187,-151.0,0.00013384,2]
[353125658,1739584246197,-151.0,0.00013384,2]
[353125659,1739584246207,-151.0,0.00013384,2]
[353125660,1739584246216,-250.633657,0.00013384,2]
[353125661,1739584246225,-284.472409,0.00013384,2]
[353125662,1739584246235,-151.0,0.00013384,2]
[353125663,1739584246245,-346.69,0.00013384,2]
[353125664,1739584246254,-150.0,0.00013444,2]
[353125665,1739584246263,-205.0,0.0001347,2]
[353125666,1739584246273,-5800.0,0.00013486,2]
[353125667,1739584246282,-737.0180365,0.00013488,2]
[353125668,1739584246292,-5800.0,0.00013495,2]
[353125669,1739584246302,-267.574803,0.00013495,2]
[353125670,1739584246311,-267.574803,0.00013495,2]
[353125671,1739584246321,-1173.588497,0.00013495,2]
[353125672,1739584246331,-1173.588497,0.00013495,2]
[353125673,1739584246340,-300.0,0.00013497,2]
[353125674,1739584246350,-666.0,0.00013497,2]
[353125675,1739584246359,-151.0,0.00013498,2]
[353125676,1739584246369,-151.0,0.00013498,2]
[353125677,1739584246378,-151.0,0.00013498,2]
[353125678,1739584246387,-225.966316,0.00013498,2]
[353125679,1739584246397,-225.966316,0.00013498,2]
[353125680,1739584246406,-151.0,0.00013498,2]
[353125681,1739584246415,-151.0,0.00013498,2]
[353125682,1739584246425,-155.14197,0.00013498,2]
[353125683,1739584246434,-151.0,0.00013498,2]
[353125684,1739584246443,-151.0,0.00013498,2]
[353125685,1739584246452,-433.925602,0.00013498,2]
[353125687,1739584246463,-151.0,0.00013498,2]
[353125688,1739584246473,-433.925602,0.00013498,2]
[353125689,1739584246484,-151.0,0.00013498,2]
[353125690,1739584246493,-151.16144,0.00013498,2]
[353125691,1739584246502,-8251.779854,0.00013498,2]
[353125692,1739584246512,-7324.70776977,0.00013498,2]
[353125694,1739584246600,-177.744704,0.00012329,2]
[353125695,1739584246610,-927.07208423,0.00013498,2]
[353125696,1739584246620,-151.0,0.00013498,2]
[353125697,1739584246629,-485.885822,0.00013498,2]
[353125698,1739584246638,-485.885822,0.00013498,2]
[353125699,1739584246648,-525.799541,0.00013498,2]
[353125700,1739584246658,-525.799541,0.00013498,2]
[353125701,1739584246668,-151.0,0.00013498,2]
[353125702,1739584246677,-151.0,0.00013498,2]
[353125703,1739584246688,-267.574803,0.00013498,2]
[353125704,1739584246697,-267.574803,0.00013498,2]
[353125705,1739584246707,-1173.588497,0.00013498,2]
[353125706,1739584246716,-1173.588497,0.00013498,2]
[353125707,1739584246726,-151.0,0.00013498,2]
[353125708,1739584246736,-151.0,0.00013498,2]
[353125709,1739584246747,-616.39891393,0.00013498,2]
[353125710,1739584246759,-1465.9842416,0.00013498,2]
[353125711,1739584246771,-1211.43217799,0.00013498,2]
[353125712,1739584246835,-11428.39498367,0.00013498,2]
[353125713,1739584246847,-4461.53053296,0.00013498,2]
[353125714,1739584246859,-6526.84105662,0.00013498,2]
[353125715,1739584247818,-177.744704,0.00012329,2]
[353125716,1739584247829,-177.744704,0.00012329,2]
[353125717,1739584247840,-177.744704,0.00012406,2]
[353125718,1739584247850,-177.744704,0.00013498,2]
[353125719,1739584247861,-177.744704,0.00013498,2]
[353125720,1739584247872,-40599.56773841,0.00013498,2]
[353125721,1739584247884,-300.45299117,0.00013498,2]
[353125722,1739584247903,-2561.5999998,0.00013498,2]
[353125723,1739584247915,-1121.31604108,0.00013498,2]
[353125724,1739584247928,-500.0,0.00013498,2]
[353125725,1739584247956,-489.29187735,0.00013498,2]
[353125726,1739584247975,-1369.44593596,0.00013498,2]
[353125727,1739584247995,-447.27153168,0.00013498,2]
[353125728,1739584248558,-177.744704,0.00012329,2]
[353125729,1739584248570,-177.744704,0.00012329,2]
[353125730,1739584248581,-177.744704,0.00012329,2]
[353125731,1739584248591,-177.744704,0.00012329,2]
[353125732,1739584248610,-177.744704,0.00012406,2]
[353125733,1739584248621,-37811.39052279,0.00013498,2]
[353125734,1739584248636,-432.19494406,0.00013498,2]
[353125735,1739584248778,-301.51702746,0.00013498,2]
[353125736,1739584248802,-590.66,0.00013498,2]
[353125757,1739585428655,338.78322218,0.0002,120]
[353125758,1739585432258,-150.0,8.835e-05,2]
[353125759,1739585432269,-9443.09324536,8.836e-05,2]
[353125760,1739585432283,-1012.67975464,8.836e-05,2]
[353125761,1739585432295,-5760.46191747,8.836e-05,2]
[353125762,1739585432308,-7517.96498253,8.836e-05,2]
[353125763,1739585432319,-7130.6402,8.836e-05,2]
[353125764,1739585432330,-2634.01,8.836e-05,2]
[353125765,1739585432342,-1363.34670464,8.836e-05,2]
[353125766,1739585432363,-3059.26689229,8.836e-05,2]
[353125767,1739585432374,-191.28753584,8.836e-05,2]
[353125768,1739585432385,-223.03508695,8.973e-05,2]
[353125769,1739585432488,-586.12907421,8.973e-05,2]
[353125773,1739585432678,-1642.207916,8.973e-05,2]
[353125775,1739585432697,-588.42382284,8.973e-05,2]
[353125817,1739585433201,-150.0,9.87e-05,2]
[353125818,1739585433245,-150.0,9.886e-05,2]
[353125823,1739585433279,-150.0,0.00010093,2]
[353125825,1739585433293,-460.56,0.00010137,2]
[353125827,1739585433303,-150.0,0.00010199,2]
[353125829,1739585433314,-1098.87,0.00010212,2]
[353125830,1739585433324,-150.0,0.00010225,2]
[353125831,1739585433334,-150.0,0.00010242,2]
[353125832,1739585433343,-150.0,0.00010252,2]
[353125833,1739585433353,-150.0,0.00010363,2]
[353125834,1739585433370,-150.0,0.00010436,2]
[353125835,1739585433380,-150.0,0.00010468,2]
[353125836,1739585433390,-150.0,0.00010562,2]
[353125837,1739585433400,-191.28753583,0.00010607,2]
[353125838,1739585433410,-150.0,0.00010649,2]
[353125839,1739585433420,-150.0,0.00010657,2]
[353125840,1739585433430,-1276.385,0.00010707,2]
[353125841,1739585433440,-2026.955,0.00010707,2]
[353125842,1739585433450,-643.518,0.00010707,2]
[353125843,1739585433460,-264.992,0.00010707,2]
[353125844,1739585433470,-574.487,0.00010707,2]
[353125845,1739585433482,-1791.792,0.00010707,2]
[353125846,1739585433491,-1029.809,0.00010707,2]
[353125847,1739585433502,-2832.748,0.00010707,2]
[353125848,1739585433512,-433.71,0.00010707,2]
[353125849,1739585433522,-541.731,0.00010707,2]
[353125850,1739585433533,-4031.912,0.00010707,2]
[353125851,1739585433542,-150.856,0.00010707,2]
[353125852,1739585433551,-3929.213,0.00010707,2]
[353125853,1739585433562,-1012.692,0.00010707,2]
[353125854,1739585433571,-150.0,0.00010774,2]
[353125855,1739585433581,-150.0,0.00010993,2]
[353125856,1739585433591,-1000.0,0.00011005,2]
[353125857,1739585433601,-150.0,0.00011016,2]
[353125858,1739585433612,-150.0,0.00011029,2]
[353125859,1739585433622,-150.0,0.00011063,2]
[353125860,1739585433631,-150.0,0.00011069,2]
[353125861,1739585433641,-150.0,0.00011092,2]
[353125862,1739585433651,-150.0,0.00011099,2]
[353125863,1739585433660,-150.0,0.00011196,2]
[353125864,1739585433670,-150.0,0.00011202,2]
[353125865,1739585433680,-150.0,0.00011229,2]
[353125866,1739585433695,-150.0,0.00011236,2]
[353125867,1739585433705,-150.0,0.00011249,2]
[353125868,1739585433714,-150.0,0.00011329,2]
[353125869,1739585433724,-150.0,0.00011336,2]
[353125870,1739585433734,-150.0,0.00011366,2]
[353125871,1739585433744,-150.0,0.00011367,2]
[353125872,1739585433754,-150.0,0.00011451,2]
[353125873,1739585433765,-150.0,0.0001149,2]
[353125874,1739585433775,-150.0,0.00011502,2]
[353125875,1739585433785,-150.0,0.00011573,2]
[353125876,1739585433794,-150.0,0.00011601,2]
[353125877,1739585433804,-150.0,0.00011624,2]
[353125878,1739585433813,-747.0,0.000117,2]
[353125879,1739585433823,-231.0,0.000117,2]
[353125880,1739585433833,-367.0,0.000117,2]
[353125881,1739585433842,-150.0,0.00011774,2]
[353125882,1739585433852,-150.0,0.00011805,2]
[353125883,1739585433862,-150.0,0.00011826,2]
[353125884,1739585433872,-1000.0,0.00011847,2]
[353125885,1739585433882,-150.0,0.00011858,2]
[353125886,1739585433897,-150.0,0.00011904,2]
[353125887,1739585433906,-150.0,0.00011963,2]
[353125888,1739585433916,-150.0,0.00011983,2]
[353125889,1739585433926,-150.0,0.00012004,2]
[353125890,1739585433937,-150.0,0.00012026,2]
[353125891,1739585433947,-150.0,0.00012029,2]
[353125892,1739585433957,-150.0,0.00012057,2]
[353125893,1739585433967,-1438.16,0.00012161,2]
[353125894,1739585433977,-150.0,0.00012194,2]
[353125895,1739585433986,-1000.0,0.00012255,2]
[353125896,1739585433996,-150.0,0.00012322,2]
[353125897,1739585434006,-250.0,0.00012325,2]
[353125898,1739585434016,-1962.67,0.00012325,2]
[353125899,1739585434026,-1000.0,0.00012381,2]
[353125900,1739585434036,-150.0,0.00012384,2]
[353125901,1739585434046,-1000.0,0.00012396,2]
[353125902,1739585434056,-150.0,0.00012407,2]
[353125903,1739585434067,-150.0,0.00012456,2]
[353125904,1739585434077,-150.0,0.00012471,2]
[353125905,1739585434087,-1098.87,0.00012476,2]
[353125906,1739585434097,-150.0,0.00012498,2]
[353125907,1739585434107,-150.0,0.00012533,2]
[353125908,1739585434117,-23900.0,0.00012554,2]
[353125909,1739585434127,-1000.0,0.00012597,2]
[353125910,1739585434138,-150.0,0.00012738,2]
[353125911,1739585434147,-150.0,0.00012746,2]
[353125912,1739585434157,-150.0,0.00012763,2]
[353125913,1739585434167,-150.0,0.00012796,2]
[353125914,1739585434177,-150.0,0.00012827,2]
[353125915,1739585434187,-2811.99,0.00012893,2]
[353125916,1739585434196,-1382.8,0.00012893,2]
[353125917,1739585434206,-627.8,0.00012893,2]
[353125918,1739585434215,-1450.25,0.00012893,2]
[353125919,1739585434225,-9999.99,0.00012893,2]
[353125920,1739585434235,-150.99,0.00012893,2]
[353125921,1739585434245,-299.99,0.00012893,2]
[353125922,1739585434255,-394.53,0.00012893,2]
[353125923,1739585434264,-9999.99,0.00012893,2]
[353125924,1739585434275,-150.58836271,0.00012897,2]
[353125925,1739585434284,-198.43,0.00012914,2]
[353125926,1739585434295,-150.0,0.00012964,2]
[353125927,1739585434304,-1000.0,0.0001297,2]
[353125928,1739585434315,-150.0,0.00012997,2]
[353125929,1739585434325,-41589.78,0.00013,2]
[353125930,1739585434335,-10000.0,0.00013,2]
[353125931,1739585434346,-150.0,0.00013083,2]
[353125932,1739585434357,-150.0,0.00013124,2]
[353125933,1739585434368,-150.0,0.00013138,2]
[353125934,1739585434378,-150.0,0.00013177,2]
[353125935,1739585434393,-150.0,0.00013181,2]
[353125936,1739585434403,-1000.0,0.00013185,2]
[353125937,1739585434413,-1000.0,0.000132,2]
[353125938,1739585434424,-1060.41,0.000132,3]
[353125939,1739585434434,-150.0,0.00013215,2]
[353125940,1739585434444,-2262.9282093,0.00013228,2]
[353125941,1739585434454,-150.0,0.00013285,2]
[353125942,1739585434464,-687.92043846,0.00013298,2]
[353125943,1739585434474,-1005.0,0.000133,2]
[353125944,1739585434483,-150.0,0.00013301,2]
[353125945,1739585434493,-150.0,0.00013352,2]
[353125946,1739585434503,-1000.0,0.00013389,2]
[353125947,1739585434513,-500.0,0.0001339,2]
[353125948,1739585434523,-2000.0,0.0001339,2]
[353125949,1739585434532,-500.0,0.0001339,2]
[353125950,1739585434542,-200.0,0.0001339,2]
[353125951,1739585434553,-170.28209592,0.00013397,2]
[353125952,1739585434565,-150.0,0.00013428,2]
[353125953,1739585434575,-1000.0,0.00013429,2]
[353125954,1739585434584,-315.08578121,0.00013438,2]
[353125955,1739585434594,-150.0,0.00013448,2]
[353125956,1739585434604,-260.0797392,0.00013488,2]
[353125957,1739585434613,-771.8277098,0.00013488,2]
[353125958,1739585434623,-29521.67301352,0.0001349,2]
[353125959,1739585434633,-213.91069137,0.00013497,2]
[353125960,1739585434643,-500.0,0.00013498,2]
[353125961,1739585434652,-500.0,0.00013498,2]
[353125962,1739585434662,-500.0,0.00013498,2]
[353125963,1739585434672,-500.0,0.00013498,2]
[353125964,1739585434681,-500.0,0.00013498,2]
[353125965,1739585434691,-500.0,0.00013498,2]
[353125966,1739585434704,-500.0,0.00013498,2]
[353125967,1739585434714,-500.0,0.00013498,2]
[353125968,1739585434724,-500.0,0.00013498,2]
[353125969,1739585434735,-500.0,0.00013498,2]
[353125970,1739585434745,-500.0,0.00013498,2]
[353125971,1739585434754,-500.0,0.00013498,2]
[353125972,1739585434763,-500.0,0.00013498,2]
[353125973,1739585434773,-500.0,0.00013498,2]
[353125974,1739585434783,-500.0,0.00013498,2]
[353125975,1739585434792,-500.0,0.00013498,2]
[353125976,1739585434802,-500.0,0.00013498,2]
[353125977,1739585434811,-500.0,0.00013498,2]
[353125978,1739585434821,-500.0,0.00013498,2]
[353125979,1739585434830,-500.0,0.00013498,2]
[353125980,1739585434840,-500.0,0.00013498,2]
[353125981,1739585434849,-500.0,0.00013498,2]
[353125982,1739585434858,-500.0,0.00013498,2]
[353125983,1739585434867,-500.0,0.00013498,2]
[353125984,1739585434877,-500.0,0.00013498,2]
[353125985,1739585434887,-500.0,0.00013498,2]
[353125986,1739585434896,-500.0,0.00013498,2]
[353125987,1739585434916,-500.0,0.00013498,2]
[353125988,1739585434928,-500.0,0.00013498,2]
[353125989,1739585434938,-500.0,0.00013498,2]
[353125990,1739585434947,-500.0,0.00013498,2]
[353125991,1739585434957,-500.0,0.00013498,2]
[353125992,1739585434968,-500.0,0.00013498,2]
[353125993,1739585434977,-500.0,0.00013498,2]
[353125994,1739585434987,-500.0,0.00013498,2]
[353125995,1739585434997,-500.0,0.00013498,2]
[353125996,1739585435008,-500.0,0.00013498,2]
[353125997,1739585435020,-500.0,0.00013498,2]
[353125998,1739585435031,-500.0,0.00013498,2]
[353125999,1739585435042,-500.0,0.00013498,2]
[353126000,1739585435052,-500.0,0.00013498,2]
[353126001,1739585435063,-500.0,0.00013498,2]
[353126002,1739585435073,-500.0,0.00013498,2]
[353126003,1739585435082,-500.0,0.00013498,2]
[353126004,1739585435092,-500.0,0.00013498,2]
[353126005,1739585435103,-500.0,0.00013498,2]
[353126006,1739585435113,-500.0,0.00013498,2]
[353126007,1739585435123,-500.0,0.00013498,2]
[353126008,1739585435133,-500.0,0.00013498,2]
[353126009,1739585435143,-769.0,0.00013498,2]
[353126010,1739585435153,-4000.0,0.00013498,2]
[353126011,1739585435163,-500.0,0.00013498,2]
[353126012,1739585435173,-513.0,0.00013498,2]
[353126013,1739585435183,-500.0,0.00013498,2]
[353126014,1739585435192,-500.0,0.00013498,2]
[353126015,1739585435202,-500.0,0.00013498,2]
[353126016,1739585435212,-500.0,0.00013498,2]
[353126017,1739585435222,-500.0,0.00013498,2]
[353126018,1739585435232,-500.0,0.00013498,2]